[Event "11th LCC Super Blitz KO 2019"]
[Site "London"]
[Date "2019.12.08"]
[Round "3.2"]
[White "McShane, Luke J"]
[Black "Gharamian, Tigran"]
[Result "1/2-1/2"]
[ECO "B11"]
[WhiteElo "2677"]
[BlackElo "2603"]
[Annotator "ChessBase"]
[PlyCount "135"]
[EventDate "2019.12.08"]
[EventType "k.o."]
[EventCountry "ENG"]
[SourceTitle "playchess.com"]
[Source "ChessBase"]
[SourceQuality "1"]
[TimeControl "180+2"]

1. e4 {[%emt 0:00:00]} c6 {[%emt 0:00:00]} 2. Nf3 {[%emt 0:00:02]} d5 {[%emt 0:00:00]} 3. Nc3 {[%emt 0:00:01]} dxe4 4. Nxe4 {[%emt 0:00:01]} Nf6 {[%emt 0:00:04]} 5. Qe2 {[%emt 0:00:03]} Nxe4 {[%emt 0:00:03]} 6. Qxe4 {[%emt 0:00:01]} Be6 {[%emt 0:00:02]} 7. b3 {[%emt 0:00:12]} Nd7 {[%emt 0:00:04]} 8. Bb2 {[%emt 0:00:01]} Nf6 {[%emt 0:00:04]} 9. Qe3 {[%emt 0:00:18]} Qa5 {[%emt 0:00:10]} 10. Ng5 {[%emt 0:00:16]} Bf5 {[%emt 0:00:17]} 11. Bc4 {[%emt 0:00:22]} e6 {[%emt 0:00:01]} 12. O-O {[%emt 0:00:10]} Be7 {[%emt 0:00:02]} 13. Rfe1 {[%emt 0:00:09]} O-O {[%emt 0:00:08]} 14. Nf3 {[%emt 0:00:15]} Nd5 {[%emt 0:00:22]} 15. Bxd5 {[%emt 0:00:13]} Qxd5 {[%emt 0:00:10]} 16. d3 {[%emt 0:00:01]} Rfe8 {[%emt 0:00:04]} 17. h3 {[%emt 0:00:05]} Bg6 {[%emt 0:00:12]} 18. Qd2 {[%emt 0:00:01]} f6 {[%emt 0:00:10]} 19. Nh4 {[%emt 0:00:08]} Rad8 {[%emt 0:00:10]} 20. f4 {[%emt 0:00:05]} Bc5+ {[%emt 0:00:17]} 21. Kh1 {[%emt 0:00:01]} Bd4 {[%emt 0:00:01]} 22. Bxd4 {[%emt 0:00:06]} Qxd4 {[%emt 0:00:01]} 23. Rad1 {[%emt 0:00:01]} e5 {[%emt 0:00:06]} 24. Nxg6 {[%emt 0:00:17]} hxg6 {[%emt 0:00:01]} 25. fxe5 {[%emt 0:00:01]} Rxe5 {[%emt 0:00:01]} 26. Rxe5 {[%emt 0:00:02]} Qxe5 {[%emt 0:00:06]} 27. Re1 {[%emt 0:00:01]} Qd6 {[%emt 0:00:05]} 28. Qa5 {[%emt 0:00:08]} a6 {[%emt 0:00:06]} 29. Qb6 {[%emt 0:00:03]} Qd7 {[%emt 0:00:09]} 30. Qb4 {[%emt 0:00:20]} Re8 {[%emt 0:00:12]} 31. Rf1 {[%emt 0:00:02]} Qe7 {[%emt 0:00:02]} 32. Qg4 {[%emt 0:00:03]} g5 {[%emt 0:00:02]} 33. Qc4+ {[%emt 0:00:15]} Qf7 {[%emt 0:00:01]} 34. Qg4 {[%emt 0:00:06]} Qe7 {[%emt 0:00:01]} 35. Qg3 {[%emt 0:00:02]} Qe5 {[%emt 0:00:02]} 36. Qf2 {[%emt 0:00:02]} Qe2 {[%emt 0:00:02]} 37. Kh2 {[%emt 0:00:02]} Qxf2 {[%emt 0:00:04]} 38. Rxf2 {[%emt 0:00:00]} Kf7 {[%emt 0:00:01]} 39. a4 {[%emt 0:00:01]} Re3 {[%emt 0:00:06]} 40. Rd2 {[%emt 0:00:03]} Ke6 {[%emt 0:00:04]} 41. Kg1 {[%emt 0:00:05]} Kd5 {[%emt 0:00:03]} 42. Kf2 {[%emt 0:00:02]} Re7 {[%emt 0:00:01]} 43. c3 {[%emt 0:00:02]} b5 {[%emt 0:00:02]} 44. Ra2 {[%emt 0:00:01]} b4 {[%emt 0:00:17]} 45. cxb4 {[%emt 0:00:03]} Rb7 {[%emt 0:00:01]} 46. Rc2 {[%emt 0:00:04]} Rxb4 {[%emt 0:00:01]} 47. Rc3 {[%emt 0:00:00]} c5 {[%emt 0:00:02]} 48. Ke3 {[%emt 0:00:01]} g4 {[%emt 0:00:04]} 49. h4 {[%emt 0:00:09]} g3 {[%emt 0:00:00]} 50. Rc4 {[%emt 0:00:01]} Rxb3 {[%emt 0:00:21]} 51. Rg4 {[%emt 0:00:01]} Ra3 {[%emt 0:00:02]} 52. h5 {[%emt 0:00:05]} Ke6 {[%emt 0:00:05]} 53. Rxg3 {[%emt 0:00:03]} Kf7 {[%emt 0:00:02]} 54. Rg4 {[%emt 0:00:01]} f5 {[%emt 0:00:05]} 55. Rc4 {[%emt 0:00:02]} Ke6 {[%emt 0:00:02]} 56. g3 {[%emt 0:00:05]} Kd5 {[%emt 0:00:00]} 57. Rf4 {[%emt 0:00:02]} Ke5 {[%emt 0:00:01]} 58. g4 {[%emt 0:00:01]} Rxd3+ {[%emt 0:00:02]} 59. Kxd3 {[%emt 0:00:02]} Kxf4 {[%emt 0:00:01]} 60. gxf5 {[%emt 0:00:02]} Kxf5 {[%emt 0:00:03]} 61. Kc4 {[%emt 0:00:00]} Kg5 {[%emt 0:00:01]} 62. Kxc5 Kxh5 {[%emt 0:00:00]} 63. Kb6 {[%emt 0:00:02]} g5 {[%emt 0:00:01]} 64. Kxa6 {[%emt 0:00:00]} g4 {[%emt 0:00:00]} 65. a5 {[%emt 0:00:01]} g3 {[%emt 0:00:01]} 66. Kb7 {[%emt 0:00:01]} g2 {[%emt 0:00:01]} 67. a6 {[%emt 0:00:01]} g1=Q {[%emt 0:00:01]} 68. a7 {[%emt 0:00:00]} 1/2-1/2

[Event "11th LCC Super Blitz KO 2019"]
[Site "London"]
[Date "2019.12.08"]
[Round "3.2"]
[White "Harvey, Marcus R"]
[Black "Howell, David W L"]
[Result "1-0"]
[ECO "A30"]
[WhiteElo "2412"]
[BlackElo "2676"]
[Annotator "ChessBase"]
[PlyCount "121"]
[EventDate "2019.12.08"]
[EventType "k.o."]
[EventCountry "ENG"]
[SourceTitle "playchess.com"]
[Source "ChessBase"]
[SourceQuality "1"]
[TimeControl "180+2"]

1. Nf3 {[%emt 0:00:00]} g6 {[%emt 0:00:00]} 2. b3 {[%emt 0:00:00]} Bg7 {[%emt 0:00:01]} 3. d4 Nf6 {[%emt 0:00:07]} 4. Bb2 {[%emt 0:00:01]} O-O {[%emt 0:00:02]} 5. e3 {[%emt 0:00:00]} b6 {[%emt 0:00:00]} 6. Be2 {[%emt 0:00:01]} Bb7 {[%emt 0:00:01]} 7. O-O {[%emt 0:00:01]} c5 {[%emt 0:00:07]} 8. c4 {[%emt 0:00:02]} cxd4 {[%emt 0:00:12]} 9. Nxd4 {[%emt 0:00:01]} Nc6 {[%emt 0:00:01]} 10. Bf3 {[%emt 0:00:02]} Qc8 {[%emt 0:00:02]} 11. Nc3 {[%emt 0:00:03]} Nxd4 {[%emt 0:00:22]} 12. Bxb7 {[%emt 0:00:02]} Qxb7 {[%emt 0:00:01]} 13. Qxd4 {[%emt 0:00:01]} Ne4 {[%emt 0:00:21]} 14. Qxe4 {[%emt 0:00:02]} Qxe4 {[%emt 0:00:01]} 15. Nxe4 {[%emt 0:00:01]} Bxb2 {[%emt 0:00:01]} 16. Rab1 {[%emt 0:00:01]} Bg7 {[%emt 0:00:01]} 17. Rfd1 {[%emt 0:00:12]} d6 {[%emt 0:00:01]} 18. Nd2 {[%emt 0:00:01]} Rfc8 {[%emt 0:00:04]} 19. Rbc1 {[%emt 0:00:06]} a6 {[%emt 0:00:07]} 20. Rc2 {[%emt 0:00:03]} Kf8 {[%emt 0:00:04]} 21. Rdc1 {[%emt 0:00:01]} Ke8 {[%emt 0:00:00]} 22. Ne4 {[%emt 0:00:07]} Rc6 {[%emt 0:00:04]} 23. Nc3 {[%emt 0:00:16]} Bxc3 {[%emt 0:00:10]} 24. Rxc3 {[%emt 0:00:02]} Rac8 {[%emt 0:00:35]} 25. Kf1 {[%emt 0:00:09]} b5 {[%emt 0:00:02]} 26. Ke2 {[%emt 0:00:01]} bxc4 {[%emt 0:00:02]} 27. bxc4 {[%emt 0:00:13]} Rc5 {[%emt 0:00:05]} 28. Kd3 {[%emt 0:00:04]} Ra5 {[%emt 0:00:01]} 29. R1c2 {[%emt 0:00:02]} Kd7 {[%emt 0:00:01]} 30. Rb3 {[%emt 0:00:02]} h5 {[%emt 0:00:03]} 31. h4 {[%emt 0:00:05]} Ra4 {[%emt 0:00:07]} 32. g3 {[%emt 0:00:10]} Rc5 {[%emt 0:00:01]} 33. a3 {[%emt 0:00:13]} Ke6 {[%emt 0:00:04]} 34. Rcc3 {[%emt 0:00:01]} Rc7 {[%emt 0:00:08]} 35. Rb4 {[%emt 0:00:03]} Ra5 {[%emt 0:00:01]} 36. e4 {[%emt 0:00:03]} Rac5 {[%emt 0:00:04]} 37. Rb6 {[%emt 0:00:06]} Ra5 {[%emt 0:00:10]} 38. Kd4 {[%emt 0:00:10]} Ra4 {[%emt 0:00:15]} 39. Rb4 {[%emt 0:00:03]} Ra5 {[%emt 0:00:00]} 40. Rb6 {[%emt 0:00:01]} Ra4 {[%emt 0:00:12]} 41. e5 {[%emt 0:00:09]} Rd7 {[%emt 0:00:09]} 42. Re3 {[%emt 0:00:05]} Kf5 {[%emt 0:00:03]} 43. exd6 {[%emt 0:00:05]} exd6 {[%emt 0:00:06]} 44. Rf3+ {[%emt 0:00:08]} Ke6 {[%emt 0:00:03]} 45. Re3+ {[%emt 0:00:07]} Kf5 {[%emt 0:00:00]} 46. Kd5 {[%emt 0:00:02]} Ra5+ {[%emt 0:00:04]} 47. Kc6 {[%emt 0:00:02]} Rd8 {[%emt 0:00:02]} 48. Kc7 {[%emt 0:00:02]} Ra8 {[%emt 0:00:02]} 49. Kxd6 {[%emt 0:00:02]} Rd8+ {[%emt 0:00:16]} 50. Kc7 {[%emt 0:00:05]} Rd4 {[%emt 0:00:04]} 51. Rc6 {[%emt 0:00:04]} Kg4 {[%emt 0:00:03]} 52. c5 {[%emt 0:00:01]} Rc4 {[%emt 0:00:03]} 53. Kb6 {[%emt 0:00:02]} Raa4 {[%emt 0:00:05]} 54. Rc8 {[%emt 0:00:01]} f5 {[%emt 0:00:02]} 55. c6 {[%emt 0:00:01]} f4 {[%emt 0:00:01]} 56. Rb3 {[%emt 0:00:06]} Rc1 {[%emt 0:00:04]} 57. c7 {[%emt 0:00:01]} fxg3 {[%emt 0:00:02]} 58. fxg3 {[%emt 0:00:03]} Rac4 {[%emt 0:00:01]} 59. Rb4 {[%emt 0:00:03]} Kxg3 {[%emt 0:00:03]} 60. Rxc4 {[%emt 0:00:01]} Rxc4 {[%emt 0:00:01]} 61. Rg8 {[%emt 0:00:01]} 1-0

[Event "11th LCC Super Blitz KO 2019"]
[Site "London"]
[Date "2019.12.08"]
[Round "3.2"]
[White "Beinoras, Mindaugas"]
[Black "Moussard, Jules"]
[Result "0-1"]
[ECO "A80"]
[WhiteElo "2350"]
[BlackElo "2598"]
[Annotator "ChessBase"]
[PlyCount "48"]
[EventDate "2019.12.08"]
[EventType "k.o."]
[EventCountry "ENG"]
[SourceTitle "playchess.com"]
[Source "ChessBase"]
[SourceQuality "1"]
[TimeControl "180+2"]

1. d4 {[%emt 0:00:00]} f5 {[%emt 0:00:00]} 2. Bg5 {[%emt 0:00:00]} h6 {[%emt 0:00:00]} 3. Bh4 {[%emt 0:00:03]} g5 {[%emt 0:00:01]} 4. Bg3 {[%emt 0:00:01]} Nf6 {[%emt 0:00:01]} 5. e3 {[%emt 0:00:03]} d6 {[%emt 0:00:01]} 6. h4 {[%emt 0:00:02]} g4 {[%emt 0:00:01]} 7. h5 {[%emt 0:00:01]} Nc6 {[%emt 0:00:13]} 8. d5 {[%emt 0:00:05]} Ne5 {[%emt 0:00:05]} 9. Ne2 {[%emt 0:00:05]} c6 {[%emt 0:00:03]} 10. Nbc3 {[%emt 0:00:08]} Bg7 {[%emt 0:00:04]} 11. Nf4 {[%emt 0:00:03]} cxd5 {[%emt 0:00:04]} 12. Ncxd5 {[%emt 0:00:04]} O-O {[%emt 0:00:11]} 13. c4 {[%emt 0:00:13]} Ne4 {[%emt 0:00:01]} 14. Bh4 {[%emt 0:00:15]} Rf7 {[%emt 0:00:06]} 15. Bd3 {[%emt 0:00:09]} Bd7 {[%emt 0:00:17]} 16. Rb1 {[%emt 0:00:09]} Rc8 {[%emt 0:00:03]} 17. Qb3 {[%emt 0:00:11]} Nc5 {[%emt 0:00:03]} 18. Qa3 {[%emt 0:00:16]} Ncxd3+ {[%emt 0:00:05]} 19. Nxd3 {[%emt 0:00:01]} Nxc4 {[%emt 0:00:01]} 20. Qxa7 {[%emt 0:00:08]} Bc6 {[%emt 0:00:02]} 21. N3b4 {[%emt 0:00:11]} Ra8 {[%emt 0:00:25]} 22. Nxc6 {[%emt 0:00:09]} bxc6 {[%emt 0:00:01]} 23. Nxe7+ {[%emt 0:00:07]} Kh7 {[%emt 0:00:01]} 24. Nxc6 {[%emt 0:00:05]} Qe8 {[%emt 0:00:00]} 0-1